[Event "10th Norway Chess 2022"]
[White "Tari,Aryan"]
[Black "Carlsen,Magnus"]
[Site "Stavanger"]
[Round "7.1"]
[Annotator "TA"]
[Result "1/2-1/2"]
[Date "2022.06.07"]
[WhiteElo "2654"]
[BlackElo "2864"]
[PlyCount "65"]
[TimeControl "60"]

{[%evp 16,65,0,0,1,1,8,0,48,32,30,39,26,0,16,0,0,0,0,0,18,16,34,6,4,-7,-12,-5,-6,-7,-8,-4,-4,-8,-11,-8,0,0,0,0,0,0,0,0,0,0,0,0,0,0,0,0]} 1. e4 {[%emt 0:0:0]} e5 {[%emt 0:0:4]} 2. Nf3 {[%emt 0:0:16]} Nc6 {[%emt 0:0:6]} 3. Nc3 {[%emt 0:0:10]
} Nf6 {[%emt 0:0:10]} 4. d4 {[%emt 0:0:5]} exd4 {[%emt 0:0:0]} 5. Nxd4 {[%emt 0:0:7]} Bb4 {[%emt 0:0:13]} 6. Nxc6 {[%emt 0:0:11]} bxc6 {[%emt 0:0:7]} 7. Bd3 {[%emt 0:0:7]} d5 {[%emt 0:0:11]} 8. Bd2 {[%emt 0:0:31]
} O-O {[%emt 0:0:45]} 9. O-O {[%emt 0:0:39]} Rb8 {[%emt 0:0:0] C47: Scotch Four Knights and Four Knights with 4 g3.} 10. Re1 {[%emt 0:0:0]} Re8 {[%emt 0:24:20] 10...Bg4 is more fashionable.} 11. h3 {[%emt 0:1:40]
[#] Inhibits Bg4.} Be6 $146 {[%emt 0:11:30]} (11... dxe4 $11 12. Bxe4 Nxe4 13. Nxe4 Bf8 )({Predecessor:} 11... dxe4 12. Nxe4 Nxe4 13. Bxb4 Nxf2 14. Rxe8+ Qxe8 15. Qe1 Qxe1+ 16. Rxe1 Be6 17. Kxf2 Rxb4 {1-0 (52) Shahinyan,D (2460)
-Alaverdyan,G (2281) Yerevan 2021} )12. b3 $14 {[%emt 0:14:5]} Nd7 {[%emt 0:0:0]} 13. exd5 {[%emt 0:15:54]} cxd5 {[%emt 0:0:8]} 14. Qf3 {[%emt 0:4:13]
} Nc5 {[%emt 0:8:37]} 15. Re2 {[%emt 0:4:20]} c6 {[%emt 0:3:23]} 16. Rae1 {[%emt 0:9:0]
} g6 {[%emt 0:1:16]} 17. Nb1 {[%emt 0:8:54]} Bxd2 {[%emt 0:0:0]} 18. Nxd2 {[%emt 0:1:0]} Qg5 {[%emt 0:5:43]} 19. c3 {[%emt 0:6:8]} (19. g4 $5 {[%cal Rf3g3]} )Bd7 {[%emt 0:1:29] The position is equal.} 20. b4 {[%emt 0:2:48]} Rxe2 {[%emt 0:2:21]} 21. Rxe2 {[%emt 0:0:37]} Ne6 {[%emt 0:4:29][%cal Ya7a5]
} 22. g3 {[%emt 0:2:40]} Qd8 {[%emt 0:3:35]} 23. h4 {[%emt 0:1:38]} a5 {[%emt 0:0:24]} 24. a3 {[%emt 0:1:11]} axb4 {[%emt 0:0:0]} (24... Kg7 {keeps more tension.} 25. Re5 axb4 26. axb4 d4 )25. axb4 {[%emt 0:0:4]
} Ra8 {[%emt 0:0:34]} 26. Nb3 {[%emt 0:3:55]} Ra3 {[%emt 0:0:0]} 27. Bc2 {[%emt 0:0:23]} Kg7 {[%emt 0:3:6]} 28. Re3 {[%emt 0:2:5]} Qf6 {[%emt 0:2:20]} 29. Qd1 {[%emt 0:1:1]} h5 {[%emt 0:0:57]} 30. Rf3 {[%emt 0:0:0]} Qe5 {[%emt 0:0:12]} 31. Re3 {[%emt 0:0:39]} Qf6 {[%emt 0:0:2]} 32. Rf3 {[%emt 0:0:16]} Qe5 {[%emt 0:0:5]} 33. Re3 {[%emt 0:0:5] Weighted
Error Value: White=0.03 (flawless) /Black=0.04 (flawless)} 1/2-1/2